fUSD/lending_fUSD_20240119
["ID","MTS","AMOUNT","RATE_DAILY","PERIOD"]
[312165325,1705674693482,-500.0,0.00023561,2]
[312165326,1705674693494,-1422.3,0.00023561,2]
[312165327,1705674693504,-17849.03,0.00023561,2]
[312165328,1705674693514,-924.53,0.00023561,2]
[312165329,1705674693523,-995.96,0.00023561,2]
[312165330,1705674693533,-3330.51,0.00023561,2]
[312165331,1705674693543,-905.92,0.00023561,2]
[312165332,1705674693554,-1401.15,0.00023561,2]
[312165333,1705674693565,-500.0,0.00023561,2]
[312165334,1705674693575,-500.0,0.00023561,2]
[312165335,1705674693586,-1383.55,0.00023561,2]
[312165336,1705674693596,-1506.65,0.00023561,2]
[312165337,1705674693606,-6741.56,0.00023561,2]
[312165338,1705674693616,-500.0,0.00023561,2]
[312165339,1705674693627,-1264.66,0.00023561,2]
[312165340,1705674693638,-500.0,0.00023561,2]
[312165341,1705674693649,-500.0,0.00023561,2]
[312165342,1705674693660,-500.0,0.00023561,2]
[312165343,1705674693670,-604.37,0.00023561,2]
[312165344,1705674693682,-1687.35,0.00023561,2]
[312165345,1705674693693,-516.56,0.00023561,2]
[312165346,1705674693703,-605.05,0.00023561,2]
[312165347,1705674693714,-1288.35,0.00023561,2]
[312165348,1705674693725,-500.0,0.00023561,2]
[312165349,1705674693736,-5391.31,0.00023561,2]
[312165350,1705674693747,-824.94,0.00023561,2]
[312165351,1705674693760,-500.0,0.00023561,2]
[312165352,1705674693771,-654.71,0.00023561,2]
[312165353,1705674693781,-1647.86,0.00023561,2]
[312165354,1705674693792,-1467.43,0.00023561,2]
[312165355,1705674693803,-500.0,0.00023561,2]
[312165356,1705674693814,-541.73,0.00023561,2]
[312165357,1705674693824,-2497.65,0.00023561,2]
[312165358,1705674693835,-1662.1,0.00023561,2]
[312165359,1705674693846,-827.16,0.00023561,2]
[312165360,1705674693857,-617.14,0.00023561,5]
[312165361,1705674693867,-798.92,0.00023561,2]
[312165362,1705674693878,-1554.52,0.00023561,2]
[312165363,1705674693888,-796.96,0.00023561,2]
[312165364,1705674693898,-1197.62,0.00023561,2]
[312165365,1705674693908,-538.86,0.00023561,2]
[312165366,1705674693919,-500.0,0.00023561,2]
[312165367,1705674693929,-1671.21,0.00023561,2]
[312165368,1705674693939,-1262.62,0.00023561,2]
[312165369,1705674693949,-500.0,0.00023561,2]
[312165370,1705674693959,-500.0,0.00023561,2]
[312165371,1705674693969,-500.0,0.00023561,2]
[312165372,1705674693979,-867.33,0.00023561,2]
[312165373,1705674693989,-1641.24,0.00023561,2]
[312165374,1705674693999,-150.0,0.00023585,2]
[312165375,1705674694012,-150.0,0.00023593,2]
[312165376,1705674694022,-250.0,0.000236,2]
[312165377,1705674694032,-343.0,0.000236,2]
[312165378,1705674694042,-1500.0,0.000236,2]
[312165379,1705674694053,-151.39793632,0.00023633,2]
[312165380,1705674694063,-154.85,0.00023634,2]
[312165381,1705674694073,-150.0,0.0002364,2]
[312165382,1705674694083,-150.0,0.00023648,2]
[312165383,1705674694093,-157.38,0.00023656,2]
[312165384,1705674694103,-18613.64350954,0.0002366,2]
[312165385,1705674694467,-376.22518155,0.00023666,7]
[312165386,1705674694477,-150.0,0.00023684,2]
[312165387,1705674694488,-157.44,0.00023706,2]
[312165388,1705674694498,-500.0,0.00023718,2]
[312165389,1705674694509,-500.0,0.00023743,2]
[312165390,1705674694519,-150.0,0.00023758,2]
[312165391,1705674694530,-215.6021794,0.000238,2]
[312165392,1705674694541,-151.39793632,0.00023808,2]
[312165393,1705674694550,-150.0,0.00023819,2]
[312165394,1705674694561,-729.27874546,0.00023835,2]
[312165395,1705674694571,-18613.64350954,0.00023835,2]
[312165396,1705674694581,-500.0,0.00023835,2]
[312165397,1705674694591,-500.0,0.00023835,2]
[312165398,1705674694601,-707.27,0.00023835,2]
[312165399,1705674694611,-500.0,0.00023835,2]
[312165400,1705674694620,-500.0,0.00023835,2]
[312165401,1705674694631,-902.43,0.00023835,2]
[312165402,1705674694643,-500.0,0.00023835,2]
[312165403,1705674694657,-500.0,0.00023835,2]
[312165404,1705674694667,-543.02,0.00023835,2]
[312165405,1705674694676,-512.07,0.00023835,2]
[312165406,1705674694687,-500.0,0.00023835,2]
[312165407,1705674694697,-785.51,0.00023835,2]
[312165408,1705674694706,-500.0,0.00023835,2]
[312165409,1705674694716,-500.0,0.00023835,2]
[312165410,1705674694726,-500.0,0.00023835,2]
[312165411,1705674694736,-500.0,0.00023835,2]
[312165412,1705674694746,-500.0,0.00023835,2]
[312165413,1705674694757,-521.03,0.00023835,2]
[312165414,1705674694767,-500.0,0.00023835,2]
[312165415,1705674694778,-500.0,0.00023835,2]
[312165416,1705674694788,-500.0,0.00023835,2]
[312165417,1705674694798,-571.67,0.00023835,2]
[312165418,1705674694808,-500.0,0.00023835,2]
[312165419,1705674694818,-500.0,0.00023835,2]
[312165420,1705674694827,-500.0,0.00023835,2]
[312165421,1705674694838,-500.0,0.00023835,2]
[312165422,1705674694848,-500.0,0.00023835,2]
[312165423,1705674694858,-528.35,0.00023835,2]
[312165424,1705674694868,-500.0,0.00023835,2]
[312165425,1705674694878,-1000.0,0.00023835,10]
[312165426,1705674694888,-500.0,0.00023835,2]
[312165427,1705674694898,-500.0,0.00023835,2]
[312165428,1705674694907,-500.0,0.00023835,2]
[312165429,1705674694917,-500.0,0.00023835,2]
[312165430,1705674694927,-500.0,0.00023835,2]
[312165431,1705674694937,-500.0,0.00023835,2]
[312165432,1705674694947,-500.0,0.00023835,2]
[312165433,1705674694957,-500.0,0.00023835,2]
[312165434,1705674694967,-500.0,0.00023835,2]
[312165435,1705674694977,-500.0,0.00023835,2]
[312165436,1705674694987,-803.94,0.00023835,2]
[312165437,1705674694997,-500.0,0.00023835,2]
[312165438,1705674695010,-500.0,0.00023835,2]
[312165439,1705674695020,-500.0,0.00023835,2]
[312165440,1705674695030,-500.0,0.00023835,2]
[312165441,1705674695041,-852.68,0.00023835,2]
[312165442,1705674695051,-500.0,0.00023835,2]
[312165443,1705674695062,-500.0,0.00023835,2]
[312165444,1705674695073,-500.0,0.00023835,2]
[312165445,1705674695082,-500.0,0.00023835,2]
[312165446,1705674695093,-500.0,0.00023835,2]
[312165447,1705674695104,-500.0,0.00023835,2]
[312165448,1705674695114,-500.0,0.00023835,2]
[312165449,1705674695125,-500.0,0.00023835,2]
[312165450,1705674695135,-506.14,0.00023835,2]
[312165451,1705674695146,-1006.1,0.00023835,2]
[312165452,1705674695156,-556.1,0.00023835,2]
[312165453,1705674695166,-500.0,0.00023835,2]
[312165454,1705674695176,-500.0,0.00023835,2]
[312165455,1705674695186,-500.0,0.00023835,2]
[312165456,1705674695197,-500.0,0.00023835,2]
[312165457,1705674695207,-500.0,0.00023835,2]
[312165458,1705674695217,-500.0,0.00023835,2]
[312165459,1705674695228,-500.0,0.00023835,2]
[312165460,1705674695239,-550.99,0.00023835,2]
[312165461,1705674695249,-500.0,0.00023835,2]
[312165462,1705674695262,-566.41,0.00023835,2]
[312165463,1705674695272,-500.0,0.00023835,2]
[312165464,1705674695283,-500.0,0.00023835,2]
[312165465,1705674695293,-666.97,0.00023835,2]
[312165466,1705674695303,-756.54,0.00023835,2]
[312165467,1705674695314,-500.0,0.00023835,2]
[312165468,1705674695324,-864.28,0.00023835,2]
[312165469,1705674695335,-733.43,0.00023835,2]
[312165470,1705674695345,-500.0,0.00023835,2]
[312165471,1705674695356,-894.89,0.00023835,2]
[312165472,1705674695367,-640.01,0.00023835,2]
[312165473,1705674695378,-500.0,0.00023835,2]
[312165474,1705674695388,-500.0,0.00023835,2]
[312165475,1705674695399,-803.93,0.00023835,2]
[312165476,1705674695409,-1124.29,0.00023835,2]
[312165477,1705674695419,-500.0,0.00023835,2]
[312165478,1705674695429,-500.0,0.00023835,2]
[312165479,1705674695440,-500.0,0.00023835,2]
[312165480,1705674695450,-208.42620373,0.00023835,2]
[312165481,1705674695460,-500.0,0.00023835,2]
[312165482,1705674695471,-500.0,0.00023835,2]
[312165483,1705674695482,-555.71,0.00023835,2]
[312165484,1705674695492,-500.0,0.00023835,2]
[312165485,1705674695503,-557.11,0.00023835,2]
[312165486,1705674695515,-1239.37,0.00023835,2]
[312165487,1705674695525,-500.0,0.00023835,2]
[312165488,1705674695536,-500.0,0.00023835,2]
[312165489,1705674695546,-518.9,0.00023835,2]
[312165490,1705674695557,-500.0,0.00023835,2]
[312165491,1705674695568,-500.0,0.00023835,2]
[312165492,1705674695578,-500.0,0.00023835,2]
[312165493,1705674695589,-500.0,0.00023835,2]
[312165494,1705674695600,-500.0,0.00023835,2]
[312165495,1705674695611,-500.0,0.00023835,2]
[312165496,1705674695622,-500.0,0.00023835,2]
[312165497,1705674695633,-500.0,0.00023835,2]
[312165498,1705674695647,-500.0,0.00023835,2]
[312165499,1705674695657,-928.59,0.00023835,2]
[312165500,1705674695668,-541.16,0.00023835,2]
[312165501,1705674695679,-500.0,0.00023835,2]
[312165502,1705674695690,-1265.34,0.00023835,2]
[312165503,1705674695701,-500.0,0.00023835,2]
[312165504,1705674695711,-608.78,0.00023835,2]
[312165505,1705674695721,-514.65,0.00023835,2]
[312165506,1705674695732,-552.53,0.00023835,2]
[312165507,1705674695744,-500.0,0.00023835,2]
[312165508,1705674695756,-500.0,0.00023835,2]
[312165509,1705674695769,-500.0,0.00023835,2]
[312165510,1705674695780,-847.01,0.00023835,2]
[312165511,1705674695791,-500.0,0.00023835,2]
[312165512,1705674695802,-500.0,0.00023835,2]
[312165513,1705674695813,-500.0,0.00023835,2]
[312165514,1705674695824,-500.0,0.00023835,2]
[312165515,1705674695834,-535.98,0.00023835,2]
[312165516,1705674695847,-500.0,0.00023835,2]
[312165517,1705674695858,-558.76,0.00023835,2]
[312165518,1705674695869,-500.0,0.00023835,2]
[312165519,1705674695880,-500.0,0.00023835,2]
[312165520,1705674695891,-886.82,0.00023835,2]
[312165521,1705674695902,-500.0,0.00023835,2]
[312165522,1705674695912,-500.0,0.00023835,2]
[312165523,1705674695923,-651.62,0.00023835,2]
[312165524,1705674695933,-869.62,0.00023835,2]
[312165525,1705674695946,-500.0,0.00023835,2]
[312165526,1705674695956,-500.0,0.00023835,2]
[312165527,1705674695967,-766.07,0.00023835,2]
[312165528,1705674695978,-380.27592094,0.00023835,2]
[312165529,1705674695988,-506.13,0.00023835,2]
[312165530,1705674695998,-588.85,0.00023835,2]
[312165531,1705674696012,-500.0,0.00023835,2]
[312165532,1705674696023,-572.98,0.00023835,2]
[312165533,1705674696033,-517.27,0.00023835,2]
[312165534,1705674696044,-715.18,0.00023835,2]
[312165535,1705674696054,-500.0,0.00023835,2]
[312165536,1705674696064,-500.0,0.00023835,2]
[312165537,1705674696073,-630.94,0.00023835,2]
[312165538,1705674696083,-847.73,0.00023835,2]
[312165539,1705674696093,-1237.47,0.00023835,2]
[312165540,1705674696103,-717.44,0.00023835,2]
[312165541,1705674696114,-500.0,0.00023835,2]
[312165542,1705674696125,-500.0,0.00023835,2]
[312165543,1705674696135,-512.98,0.00023835,2]
[312165544,1705674696146,-500.0,0.00023835,2]
[312165545,1705674696157,-500.0,0.00023835,2]
[312165546,1705674696167,-500.0,0.00023835,2]
[312165547,1705674696178,-500.0,0.00023835,2]
[312165548,1705674696189,-500.0,0.00023835,2]
[312165549,1705674696199,-737.83,0.00023835,2]
[312165550,1705674696210,-500.0,0.00023835,2]
[312165551,1705674696220,-500.0,0.00023835,2]
[312165552,1705674696231,-1372.6,0.00023835,2]
[312165553,1705674696241,-500.0,0.00023835,2]
[312165554,1705674696251,-500.0,0.00023835,2]
[312165555,1705674696264,-500.0,0.00023835,2]
[312165556,1705674696274,-560.24,0.00023835,2]
[312165557,1705674696284,-910.01,0.00023835,2]
[312165558,1705674696295,-622.13,0.00023835,2]
[312165559,1705674696305,-923.43,0.00023835,2]
[312165560,1705674696316,-500.0,0.00023835,2]
[312165561,1705674696326,-1039.82,0.00023835,2]
[312165562,1705674696336,-725.5,0.00023835,2]
[312165563,1705674696347,-550.84,0.00023835,2]
[312165564,1705674696358,-500.0,0.00023835,2]
[312165565,1705674696368,-881.4,0.00023835,2]
[312165566,1705674696379,-774.84,0.00023835,2]
[312165567,1705674696389,-500.0,0.00023835,2]
[312165568,1705674696399,-500.0,0.00023835,2]
[312165569,1705674696410,-477.36584841,0.00023835,2]
[312165570,1705674696421,-500.0,0.00023835,2]
[312165571,1705674696431,-586.22,0.00023835,2]
[312165572,1705674696442,-534.43,0.00023835,2]
[312165573,1705674696452,-636.62,0.00023835,2]
[312165574,1705674696463,-500.0,0.00023835,2]
[312165575,1705674696473,-713.47,0.00023835,2]
[312165576,1705674696484,-959.84,0.00023835,2]
[312165577,1705674696494,-500.0,0.00023835,2]
[312165578,1705674696504,-578.16,0.00023835,2]
[312165579,1705674696515,-500.0,0.00023835,2]
[312165580,1705674696527,-189.46981047,0.00023835,2]
[312165581,1705674696538,-500.0,0.00023835,2]
[312165582,1705674696549,-999.09,0.00023835,2]
[312165583,1705674696559,-500.0,0.00023835,2]
[312165584,1705674696569,-500.0,0.00023835,2]
[312165585,1705674696580,-682.87,0.00023835,2]
[312165586,1705674696591,-565.49,0.00023835,2]
[312165587,1705674696601,-915.17,0.00023835,2]
[312165588,1705674696612,-500.0,0.00023835,2]
[312165589,1705674696622,-592.67,0.00023835,2]
[312165590,1705674696632,-500.0,0.00023835,2]
[312165591,1705674696644,-500.0,0.00023835,2]
[312165592,1705674696658,-500.0,0.00023835,2]
[312165593,1705674696669,-500.0,0.00023835,2]
[312165594,1705674696679,-500.0,0.00023835,2]
[312165595,1705674696690,-661.07,0.00023835,2]
[312165596,1705674696700,-621.88,0.00023835,2]
[312165597,1705674696710,-658.77,0.00023835,2]
[312165598,1705674696720,-814.59,0.00023835,2]
[312165599,1705674696731,-620.1,0.00023835,2]
[312165600,1705674696741,-500.0,0.00023835,2]
[312165601,1705674696752,-500.0,0.00023835,2]
[312165602,1705674696764,-500.0,0.00023835,2]
[312165603,1705674696773,-1051.71,0.00023835,2]
[312165604,1705674696784,-1871.07,0.00023835,2]
[312165605,1705674696795,-507.26,0.00023835,2]
[312165606,1705674696806,-1122.09,0.00023835,2]
[312165607,1705674696817,-500.0,0.00023835,2]
[312165608,1705674696827,-500.0,0.00023835,2]
[312165609,1705674696838,-1073.38,0.00023835,2]
[312165610,1705674696848,-500.0,0.00023835,2]
[312165611,1705674696859,-681.46,0.00023835,2]
[312165612,1705674696869,-609.04,0.00023835,2]
[312165613,1705674696879,-500.0,0.00023835,2]
[312165614,1705674696890,-500.0,0.00023835,2]
[312165615,1705674696900,-684.05,0.00023835,2]
[312165616,1705674696910,-536.25,0.00023835,2]
[312165617,1705674696921,-891.26,0.00023835,2]
[312165618,1705674696931,-500.0,0.00023835,2]
[312165619,1705674696942,-500.0,0.00023835,2]
[312165620,1705674696952,-500.0,0.00023835,2]
[312165621,1705674696962,-921.86,0.00023835,2]
[312165622,1705674696972,-500.0,0.00023835,2]
[312165623,1705674696981,-548.46,0.00023835,2]
[312165624,1705674696992,-718.86,0.00023835,2]
[312165625,1705674697003,-514.23,0.00023835,2]
[312165626,1705674697098,-759.76,0.00023835,2]
[312165627,1705674697108,-581.17,0.00023835,2]
[312165628,1705674697118,-579.17,0.00023835,2]
[312165629,1705674697128,-500.0,0.00023835,2]
[312165630,1705674697138,-500.0,0.00023835,2]
[312165631,1705674697149,-899.48,0.00023835,2]
[312165632,1705674697159,-500.0,0.00023835,2]
[312165633,1705674697168,-520.46,0.00023835,2]
[312165634,1705674697178,-564.45,0.00023835,2]
[312165635,1705674697189,-1056.49,0.00023835,2]
[312165636,1705674697199,-500.0,0.00023835,2]
[312165637,1705674697209,-539.4,0.00023835,2]
[312165638,1705674697219,-525.71,0.00023835,2]
[312165639,1705674697229,-531.87774537,0.00023835,2]
[312165640,1705674697238,-1035.53,0.00023835,2]
[312165641,1705674697248,-950.46,0.00023835,2]
[312165642,1705674697260,-841.77,0.00023835,2]
[312165643,1705674697270,-1004.01,0.00023835,2]
[312165644,1705674697280,-511.72,0.00023835,2]
[312165645,1705674697290,-773.82,0.00023835,2]
[312165646,1705674697299,-500.0,0.00023835,2]
[312165647,1705674697310,-500.0,0.00023835,2]
[312165648,1705674697321,-500.0,0.00023835,2]
[312165649,1705674697331,-831.13,0.00023835,2]
[312165650,1705674697341,-500.0,0.00023835,2]
[312165651,1705674697351,-807.35,0.00023835,2]
[312165652,1705674697361,-3109.38,0.00023835,2]
[312165653,1705674697371,-896.34,0.00023835,2]
[312165654,1705674697381,-687.96,0.00023835,2]
[312165655,1705674697390,-1114.15,0.00023835,2]
[312165656,1705674697400,-659.78,0.00023835,2]
[312165657,1705674697410,-758.37,0.00023835,2]
[312165658,1705674697420,-500.0,0.00023835,2]
[312165659,1705674697429,-570.22,0.00023835,2]
[312165660,1705674697439,-500.0,0.00023835,2]
[312165661,1705674697449,-500.0,0.00023835,2]
[312165662,1705674697459,-500.0,0.00023835,2]
[312165663,1705674697469,-755.62,0.00023835,2]
[312165664,1705674697479,-1088.69,0.00023835,2]
[312165665,1705674697488,-500.0,0.00023835,2]
[312165666,1705674697498,-2162.24,0.00023835,2]
[312165667,1705674697511,-500.0,0.00023835,2]
[312165668,1705674697521,-1062.76,0.00023835,2]
[312165669,1705674697531,-500.0,0.00023835,2]
[312165670,1705674697541,-612.29,0.00023835,2]
[312165671,1705674697551,-2396.2,0.00023835,2]
[312165672,1705674697561,-500.0,0.00023835,2]
[312165673,1705674697572,-565.53,0.00023835,2]
[312165674,1705674697582,-668.85,0.00023835,2]
[312165675,1705674697593,-598.83,0.00023835,2]
[312165676,1705674697604,-508.81,0.00023835,2]
[312165677,1705674697614,-1080.49,0.00023835,2]
[312165678,1705674697624,-2041.51,0.00023835,2]
[312165679,1705674697638,-834.41,0.00023835,2]
[312165680,1705674697650,-604.66,0.00023835,2]
[312165681,1705674697661,-794.08,0.00023835,2]
[312165682,1705674697672,-500.0,0.00023835,2]
[312165683,1705674697683,-935.21,0.00023835,2]
[312165684,1705674697694,-942.04,0.00023835,2]
[312165685,1705674697705,-500.0,0.00023835,2]
[312165686,1705674697715,-1596.53,0.00023835,2]
[312165687,1705674697725,-992.82,0.00023835,2]
[312165688,1705674697736,-500.0,0.00023835,2]
[312165689,1705674697746,-500.0,0.00023835,2]
[312165690,1705674697757,-841.54,0.00023835,2]
[312165691,1705674697768,-500.0,0.00023835,2]
[312165692,1705674697779,-500.0,0.00023835,2]
[312165693,1705674697791,-907.37,0.00023835,2]
[312165694,1705674697801,-2116.41,0.00023835,2]
[312165695,1705674697811,-1220.64,0.00023835,2]
[312165696,1705674697822,-500.0,0.00023835,2]
[312165697,1705674697834,-500.0,0.00023835,2]
[312165698,1705674697844,-3104.05,0.00023835,2]
[312165699,1705674697855,-625.97,0.00023835,2]
[312165700,1705674697866,-1045.61,0.00023835,2]
[312165701,1705674697877,-500.0,0.00023835,2]
[312165702,1705674697887,-500.0,0.00023835,2]
[312165703,1705674697897,-500.0,0.00023835,2]
[312165704,1705674697907,-973.18,0.00023835,2]
[312165705,1705674697919,-1342.7,0.00023835,2]
[312165706,1705674697929,-500.0,0.00023835,2]
[312165707,1705674697940,-500.0,0.00023835,2]
[312165708,1705674697950,-1590.89,0.00023835,2]
[312165709,1705674697961,-925.53,0.00023835,2]
[312165710,1705674697971,-774.58,0.00023835,2]
[312165711,1705674697981,-834.36,0.00023835,2]
[312165712,1705674697991,-854.66,0.00023835,2]
[312165713,1705674698001,-500.0,0.00023835,2]
[312165714,1705674698013,-213.82,0.00023835,2]
[312165715,1705674698022,-1485.93,0.00023835,2]
[312165716,1705674698033,-1774.31,0.00023835,2]
[312165717,1705674698043,-500.0,0.00023835,2]
[312165718,1705674698054,-376.02138658,0.00023835,2]
[312165719,1705674698064,-2260.08,0.00023835,2]
[312165720,1705674698074,-584.48,0.00023835,2]
[312165721,1705674698084,-1527.06,0.00023835,2]
[312165722,1705674698094,-500.0,0.00023835,2]
[312165723,1705674698105,-648.29,0.00023835,2]
[312165724,1705674698115,-804.55,0.00023835,2]
[312165725,1705674698125,-1390.89,0.00023835,2]
[312165726,1705674698135,-1877.21,0.00023835,2]
[312165727,1705674698146,-500.0,0.00023835,2]
[312165728,1705674698156,-500.0,0.00023835,5]
[312165729,1705674698167,-3022.81,0.00023835,2]
[312165730,1705674698177,-377.83660391,0.00023835,2]
[312165731,1705674698187,-900.94,0.00023835,2]
[312165732,1705674698197,-1574.26,0.00023835,2]
[312165733,1705674698207,-500.0,0.00023835,2]
[312165734,1705674698217,-500.0,0.00023835,2]
[312165735,1705674698227,-6093.79,0.00023835,2]
[312165736,1705674698237,-500.0,0.00023835,2]
[312165737,1705674698247,-1118.13,0.00023835,2]
[312165738,1705674698257,-652.23,0.00023835,2]
[312165739,1705674698267,-502.55,0.00023835,2]
[312165740,1705674698277,-1115.85,0.00023835,2]
[312165741,1705674698288,-2563.91,0.00023835,2]
[312165742,1705674698298,-2341.41,0.00023835,2]
[312165743,1705674698308,-810.7,0.00023835,2]
[312165744,1705674698318,-500.0,0.00023835,2]
[312165745,1705674698327,-2005.36,0.00023835,2]
[312165746,1705674698337,-602.05,0.00023835,2]
[312165747,1705674698346,-707.49,0.00023835,2]
[312165748,1705674698356,-500.0,0.00023835,2]
[312165749,1705674698366,-581.35,0.00023835,2]
[312165750,1705674698376,-3924.46,0.00023835,2]
[312165751,1705674698386,-500.0,0.00023835,2]
[312165752,1705674698395,-1103.28,0.00023835,2]
[312165753,1705674698405,-500.0,0.00023835,2]
[312165754,1705674698415,-500.0,0.00023835,2]
[312165755,1705674698424,-563.69,0.00023835,2]
[312165756,1705674698434,-500.0,0.00023835,2]
[312165757,1705674698443,-500.0,0.00023835,2]
[312165758,1705674698453,-8501.89,0.00023835,2]
[312165759,1705674698463,-527.48,0.00023835,2]
[312165760,1705674698473,-500.0,0.00023835,2]
[312165761,1705674698483,-500.0,0.00023835,2]
[312165762,1705674698493,-878.75,0.00023835,2]
[312165763,1705674698503,-500.0,0.00023835,2]
[312165764,1705674698516,-3091.25,0.00023835,2]
[312165765,1705674698526,-500.0,0.00023835,2]
[312165766,1705674698537,-10664.33,0.00023835,2]
[312165767,1705674698547,-500.0,0.00023835,2]
[312165768,1705674698556,-1693.3,0.00023835,2]
[312165769,1705674698567,-900.55,0.00023835,2]
[312165770,1705674698577,-1114.75,0.00023835,2]
[312165771,1705674698587,-854.63,0.00023835,2]
[312165772,1705674698597,-1585.15,0.00023835,2]
[312165773,1705674698607,-991.98,0.00023835,2]
[312165774,1705674698617,-533.58,0.00023835,2]
[312165775,1705674698628,-1277.56,0.00023835,2]
[312165776,1705674698638,-6410.9,0.00023835,2]
[312165777,1705674698650,-918.55,0.00023835,2]
[312165778,1705674698660,-5442.28,0.00023835,2]
[312165779,1705674698670,-500.0,0.00023835,2]
[312165780,1705674698681,-1784.06,0.00023835,2]
[312165781,1705674698692,-523.42,0.00023835,2]
[312165782,1705674698703,-875.49,0.00023835,2]
[312165783,1705674698713,-606.49,0.00023835,2]
[312165784,1705674698723,-1009.22,0.00023835,2]
[312165785,1705674698734,-693.07,0.00023835,2]
[312165786,1705674698745,-2140.41,0.00023835,2]
[312165787,1705674698755,-511.36,0.00023835,2]
[312165788,1705674698767,-500.0,0.00023835,2]
[312165789,1705674698777,-554.95,0.00023835,2]
[312165790,1705674698787,-3585.07,0.00023835,2]
[312165791,1705674698798,-642.37,0.00023835,2]
[312165792,1705674698809,-2571.91,0.00023835,2]
[312165793,1705674698819,-816.86,0.00023835,2]
[312165794,1705674698828,-1520.09,0.00023835,2]
[312165795,1705674698838,-2957.01,0.00023835,2]
[312165796,1705674698848,-713.94,0.00023835,2]
[312165797,1705674698858,-3111.27,0.00023835,2]
[312165798,1705674698868,-1247.06,0.00023835,2]
[312165799,1705674698878,-2470.98,0.00023835,2]
[312165800,1705674698889,-877.17,0.00023835,2]
[312165801,1705674698898,-16108.31,0.00023835,2]
[312165802,1705674698909,-1420.38,0.00023835,2]
[312165803,1705674698919,-500.0,0.00023835,2]
[312165804,1705674698929,-5889.58,0.00023835,2]
[312165805,1705674698940,-1031.15,0.00023835,2]
[312165806,1705674698949,-500.0,0.00023835,2]
[312165807,1705674698959,-24836.08,0.00023835,2]
[312165808,1705674698969,-500.0,0.00023835,2]
[312165809,1705674698980,-525.39,0.00023835,2]
[312165810,1705674698990,-500.0,0.00023835,2]
[312165811,1705674699000,-519.07665973,0.00023835,2]
[312165812,1705674699011,-1007.94,0.00023835,2]
[312165813,1705674699021,-12531.28,0.00023835,2]
[312165814,1705674699031,-500.0,0.00023835,2]
[312165815,1705674699041,-1705.83,0.00023835,2]
[312165816,1705674699051,-557.18,0.00023835,2]
[312165817,1705674699061,-621.8,0.00023835,2]
[312165818,1705674699071,-500.0,0.00023835,2]
[312165819,1705674699081,-652.5,0.00023835,2]
[312165820,1705674699090,-1703.36,0.00023835,2]
[312165821,1705674699100,-1441.36,0.00023835,2]
[312165822,1705674699110,-727.24,0.00023835,2]
[312165823,1705674699120,-500.0,0.00023835,2]
[312165824,1705674699130,-1152.24,0.00023835,2]